[Event "Titled Tuesday Blitz July 25 Early 2023"]
[White "brm72"]
[Black "Galchenko, Matvey"]
[BlackFideId "24175480"]
[WhiteElo "2677"]
[BlackElo "2888"]
[Result "0-1"]
[Round "9"]
[TimeControl "180+2"]
[Date "2023.07.25"]
[WhiteClock "0:00:01"]
[BlackClock "0:00:12"]
[Board "38"]

1. d4 {[%clk 0:03:00]}  Nf6 {[%clk 0:02:59]} 2. c4 {[%clk 0:03:01]}  c5 {[%clk 0:03:00]} 3. Nf3 {[%clk 0:02:54]}  cxd4 {[%clk 0:03:00]} 4. Nxd4 {[%clk 0:02:55]}  e5 {[%clk 0:03:00]} 5. Nb5 {[%clk 0:02:49]}  d5 {[%clk 0:02:59]} 6. cxd5 {[%clk 0:02:45]}  Bc5 {[%clk 0:02:58]} 7. N1c3 {[%clk 0:02:39]}  O-O {[%clk 0:02:54]} 8. e3 {[%clk 0:02:26]}  a6 {[%clk 0:02:52]} 9. Na3 {[%clk 0:02:21]}  b5 {[%clk 0:02:50]} 10. Nc2 {[%clk 0:02:20]}  e4 {[%clk 0:02:39]} 11. Be2 {[%clk 0:02:18]}  Bb7 {[%clk 0:02:38]} 12. O-O {[%clk 0:02:17]}  Nbd7 {[%clk 0:02:37]} 13. a3 {[%clk 0:02:14]}  Qe7 {[%clk 0:02:34]} 14. b4 {[%clk 0:02:13]}  Bd6 {[%clk 0:02:34]} 15. Bb2 {[%clk 0:02:11]}  Rac8 {[%clk 0:02:34]} 16. Nd4 {[%clk 0:02:07]}  Qe5 {[%clk 0:02:32]} 17. g3 {[%clk 0:02:07]}  Qg5 {[%clk 0:02:32]} 18. Rc1 {[%clk 0:01:55]}  Ne5 {[%clk 0:02:20]} 19. Kg2 {[%clk 0:01:49]}  Rcd8 {[%clk 0:02:16]} 20. h4 {[%clk 0:01:45]}  Qg6 {[%clk 0:02:16]} 21. Rh1 {[%clk 0:01:27]}  Nd3 {[%clk 0:02:15]} 22. Bxd3 {[%clk 0:01:07]}  exd3 {[%clk 0:02:15]} 23. h5 {[%clk 0:01:02]}  Qg5 {[%clk 0:02:16]} 24. e4 {[%clk 0:00:56]}  Rfe8 {[%clk 0:01:43]} 25. Qxd3 {[%clk 0:00:54]}  Nxe4 {[%clk 0:01:24]} 26. Nxe4 {[%clk 0:00:40]}  Rxe4 {[%clk 0:01:24]} 27. Nf3 {[%clk 0:00:31]}  Qxd5 {[%clk 0:01:18]} 28. Qxd5 {[%clk 0:00:25]}  Bxd5 {[%clk 0:01:19]} 29. Rhd1 {[%clk 0:00:25]}  Bb7 {[%clk 0:01:19]} 30. Rd2 {[%clk 0:00:23]}  Be7 {[%clk 0:00:56]} 31. Rxd8+ {[%clk 0:00:20]}  Bxd8 {[%clk 0:00:56]} 32. Rd1 {[%clk 0:00:20]}  Re8 {[%clk 0:00:47]} 33. Rd2 {[%clk 0:00:16]}  Bb6 {[%clk 0:00:42]} 34. g4 {[%clk 0:00:16]}  h6 {[%clk 0:00:40]} 35. Kg3 {[%clk 0:00:17]}  Bc7+ {[%clk 0:00:40]} 36. Kg2 {[%clk 0:00:17]}  Re4 {[%clk 0:00:40]} 37. Rd4 {[%clk 0:00:07]}  Rxd4 {[%clk 0:00:27]} 38. Bxd4 {[%clk 0:00:07]}  f6 {[%clk 0:00:28]} 39. Bc5 {[%clk 0:00:04]}  Kf7 {[%clk 0:00:28]} 40. Bd4 {[%clk 0:00:04]}  Ke6 {[%clk 0:00:16]} 41. Bc3 {[%clk 0:00:03]}  Be4 {[%clk 0:00:11]} 42. Bd4 {[%clk 0:00:03]}  Bd6 {[%clk 0:00:11]} 43. Bc3 {[%clk 0:00:03]}  Kd5 {[%clk 0:00:12]} 44. Bb2 {[%clk 0:00:01]}  Kc4 {[%clk 0:00:12]} 45. Bc1 {[%clk 0:00:01]}  Kb3 {[%clk 0:00:12]} 0-1


[Site "https://www.chess.com"]

[Event "Titled Tuesday Blitz July 25 Early 2023"]
[White "ArtemDyachuk"]
[Black "Pakleza, Zbigniew"]
[BlackFideId "1119290"]
[WhiteElo "2611"]
[BlackElo "2777"]
[Result "0-1"]
[Round "9"]
[TimeControl "180+2"]
[Date "2023.07.25"]
[WhiteClock "0:00:12"]
[BlackClock "0:01:11"]
[Board "42"]

1. e4 {[%clk 0:03:00]}  d6 {[%clk 0:03:00]} 2. d4 {[%clk 0:02:58]}  Nf6 {[%clk 0:03:00]} 3. Nc3 {[%clk 0:02:53]}  c6 {[%clk 0:03:01]} 4. Nf3 {[%clk 0:02:48]}  Bg4 {[%clk 0:03:00]} 5. Be2 {[%clk 0:02:40]}  e6 {[%clk 0:03:01]} 6. O-O {[%clk 0:02:35]}  d5 {[%clk 0:03:01]} 7. e5 {[%clk 0:02:33]}  Nfd7 {[%clk 0:03:01]} 8. Be3 {[%clk 0:02:30]}  Be7 {[%clk 0:03:01]} 9. a4 {[%clk 0:02:15]}  c5 {[%clk 0:03:00]} 10. dxc5 {[%clk 0:02:14]}  Nc6 {[%clk 0:02:59]} 11. Nb5 {[%clk 0:02:11]}  Nxc5 {[%clk 0:02:53]} 12. Bf4 {[%clk 0:01:16]}  O-O {[%clk 0:02:49]} 13. h3 {[%clk 0:01:12]}  Bxf3 {[%clk 0:02:40]} 14. Bxf3 {[%clk 0:01:13]}  a6 {[%clk 0:02:40]} 15. Nd4 {[%clk 0:01:12]}  Qb6 {[%clk 0:02:33]} 16. b3 {[%clk 0:01:06]}  Rac8 {[%clk 0:02:22]} 17. Re1 {[%clk 0:01:00]}  Rfd8 {[%clk 0:02:13]} 18. Nxc6 {[%clk 0:00:45]}  Qxc6 {[%clk 0:02:04]} 19. Re3 {[%clk 0:00:36]}  Ne4 {[%clk 0:01:45]} 20. c4 {[%clk 0:00:31]}  Bc5 {[%clk 0:01:45]} 21. cxd5 {[%clk 0:00:24]}  exd5 {[%clk 0:01:36]} 22. Rc1 {[%clk 0:00:15]}  Qb6 {[%clk 0:01:22]} 23. Re2 {[%clk 0:00:15]}  Nxf2 {[%clk 0:01:16]} 24. Qc2 {[%clk 0:00:12]}  Nxh3+ {[%clk 0:01:11]} 0-1


[Site "https://www.chess.com"]

[Event "Titled Tuesday Blitz July 25 Early 2023"]
[White "Rozman, Levy"]
[Black "Ahmad, Khagan"]
[WhiteFideId "2039877"]
[BlackFideId "13431552"]
[WhiteElo "2758"]
[BlackElo "2600"]
[Result "1-0"]
[Round "9"]
[TimeControl "180+2"]
[Date "2023.07.25"]
[WhiteClock "0:00:46"]
[BlackClock "0:00:00"]
[Board "43"]

1. e4 {[%clk 0:02:57]}  c5 {[%clk 0:02:54]} 2. Nc3 {[%clk 0:02:54]}  g6 {[%clk 0:02:49]} 3. d4 {[%clk 0:02:53]}  Bg7 {[%clk 0:02:49]} 4. Be3 {[%clk 0:02:50]}  Nc6 {[%clk 0:02:39]} 5. d5 {[%clk 0:02:47]}  Nd4 {[%clk 0:02:32]} 6. Nf3 {[%clk 0:02:39]}  Nxf3+ {[%clk 0:02:29]} 7. Qxf3 {[%clk 0:02:29]}  d6 {[%clk 0:02:26]} 8. Bb5+ {[%clk 0:02:21]}  Bd7 {[%clk 0:02:24]} 9. Bxd7+ {[%clk 0:02:19]}  Qxd7 {[%clk 0:02:25]} 10. O-O {[%clk 0:02:11]}  Nf6 {[%clk 0:02:14]} 11. h3 {[%clk 0:02:10]}  O-O {[%clk 0:02:08]} 12. Rad1 {[%clk 0:02:05]}  b5 {[%clk 0:02:07]} 13. e5 {[%clk 0:02:00]}  dxe5 {[%clk 0:01:44]} 14. Bxc5 {[%clk 0:02:00]}  Rfc8 {[%clk 0:01:42]} 15. b4 {[%clk 0:01:55]}  a5 {[%clk 0:01:36]} 16. a3 {[%clk 0:01:55]}  axb4 {[%clk 0:01:23]} 17. axb4 {[%clk 0:01:56]}  Ra3 {[%clk 0:01:22]} 18. Rd3 {[%clk 0:01:48]}  Ne8 {[%clk 0:00:42]} 19. Ne4 {[%clk 0:01:40]}  Rxd3 {[%clk 0:00:40]} 20. Qxd3 {[%clk 0:01:37]}  Nd6 {[%clk 0:00:37]} 21. Ra1 {[%clk 0:01:30]}  Qf5 {[%clk 0:00:20]} 22. f3 {[%clk 0:01:29]}  Nxe4 {[%clk 0:00:19]} 23. fxe4 {[%clk 0:01:30]}  Qd7 {[%clk 0:00:20]} 24. Ra7 {[%clk 0:01:27]}  Rc7 {[%clk 0:00:19]} 25. Rxc7 {[%clk 0:01:24]}  Qxc7 {[%clk 0:00:19]} 26. Qxb5 {[%clk 0:01:25]}  Bf8 {[%clk 0:00:16]} 27. Qc6 {[%clk 0:01:21]}  Qd8 {[%clk 0:00:12]} 28. c4 {[%clk 0:01:11]}  e6 {[%clk 0:00:12]} 29. d6 {[%clk 0:01:04]}  Qg5 {[%clk 0:00:04]} 30. d7 {[%clk 0:00:54]}  Qc1+ {[%clk 0:00:04]} 31. Kh2 {[%clk 0:00:55]}  Qf4+ {[%clk 0:00:04]} 32. Kh1 {[%clk 0:00:55]}  Qf1+ {[%clk 0:00:02]} 33. Bg1 {[%clk 0:00:56]}  Be7 {[%clk 0:00:01]} 34. d8=B {[%clk 0:00:52]}  Bxd8 {[%clk 0:00:01]} 35. Qe8+ {[%clk 0:00:53]}  Kg7 {[%clk 0:00:02]} 36. Qxd8 {[%clk 0:00:53]}  Qxc4 {[%clk 0:00:00]} 37. Qd2 {[%clk 0:00:46]} 1-0


[Site "https://www.chess.com"]

[Event "Titled Tuesday Blitz July 25 Early 2023"]
[White "Ezat, Mohamed"]
[Black "Csonka, Balazs"]
[WhiteFideId "10600906"]
[BlackFideId "742910"]
[WhiteElo "2597"]
[BlackElo "2757"]
[Result "1/2-1/2"]
[Round "9"]
[TimeControl "180+2"]
[Date "2023.07.25"]
[WhiteClock "0:01:29"]
[BlackClock "0:00:29"]
[Board "44"]

1. d4 {[%clk 0:02:51]}  Nf6 {[%clk 0:02:59]} 2. c4 {[%clk 0:02:51]}  a6 {[%clk 0:02:59]} 3. Nc3 {[%clk 0:02:50]}  b5 {[%clk 0:03:00]} 4. e3 {[%clk 0:02:41]}  b4 {[%clk 0:02:53]} 5. Nce2 {[%clk 0:02:41]}  Bb7 {[%clk 0:02:52]} 6. Ng3 {[%clk 0:02:40]}  e6 {[%clk 0:02:51]} 7. Nf3 {[%clk 0:02:40]}  c5 {[%clk 0:02:47]} 8. Bd3 {[%clk 0:02:38]}  d6 {[%clk 0:02:44]} 9. O-O {[%clk 0:02:37]}  Nbd7 {[%clk 0:02:45]} 10. b3 {[%clk 0:02:35]}  g6 {[%clk 0:02:40]} 11. Bb2 {[%clk 0:02:34]}  Bg7 {[%clk 0:02:40]} 12. Ng5 {[%clk 0:02:24]}  O-O {[%clk 0:02:37]} 13. N5e4 {[%clk 0:02:22]}  Nxe4 {[%clk 0:02:33]} 14. Bxe4 {[%clk 0:02:22]}  Qc7 {[%clk 0:02:26]} 15. Qf3 {[%clk 0:02:11]}  Bxe4 {[%clk 0:02:16]} 16. Nxe4 {[%clk 0:02:10]}  a5 {[%clk 0:02:03]} 17. Rad1 {[%clk 0:02:05]}  a4 {[%clk 0:01:53]} 18. Ba1 {[%clk 0:02:01]}  axb3 {[%clk 0:01:51]} 19. axb3 {[%clk 0:02:01]}  d5 {[%clk 0:01:25]} 20. Nd2 {[%clk 0:01:49]}  cxd4 {[%clk 0:00:56]} 21. Bxd4 {[%clk 0:01:40]}  Bxd4 {[%clk 0:00:37]} 22. exd4 {[%clk 0:01:40]}  dxc4 {[%clk 0:00:38]} 23. Nxc4 {[%clk 0:01:39]}  Nb6 {[%clk 0:00:36]} 24. Ne3 {[%clk 0:01:29]}  Rad8 {[%clk 0:00:29]} 1/2-1/2


[Site "https://www.chess.com"]

[Event "Titled Tuesday Blitz July 25 Early 2023"]
[White "Matinian, Nikita"]
[Black "Vlassov, Nikolai"]
[WhiteFideId "24129100"]
[BlackFideId "4103360"]
[WhiteElo "2750"]
[BlackElo "2572"]
[Result "1/2-1/2"]
[Round "9"]
[TimeControl "180+2"]
[Date "2023.07.25"]
[WhiteClock "0:00:03"]
[BlackClock "0:00:04"]
[Board "46"]

1. e4 {[%clk 0:02:47]}  Nc6 {[%clk 0:02:56]} 2. Nf3 {[%clk 0:02:47]}  d5 {[%clk 0:02:56]} 3. exd5 {[%clk 0:02:47]}  Qxd5 {[%clk 0:02:57]} 4. Nc3 {[%clk 0:02:46]}  Qa5 {[%clk 0:02:57]} 5. h3 {[%clk 0:02:45]}  Nf6 {[%clk 0:02:56]} 6. d4 {[%clk 0:02:45]}  e6 {[%clk 0:02:45]} 7. Bb5 {[%clk 0:02:40]}  Bd7 {[%clk 0:02:44]} 8. O-O {[%clk 0:02:39]}  Bb4 {[%clk 0:02:43]} 9. Qd3 {[%clk 0:02:19]}  a6 {[%clk 0:02:38]} 10. Bxc6 {[%clk 0:02:15]}  Bxc6 {[%clk 0:02:37]} 11. Ne5 {[%clk 0:02:15]}  O-O {[%clk 0:02:26]} 12. Nxc6 {[%clk 0:02:05]}  bxc6 {[%clk 0:02:27]} 13. Bd2 {[%clk 0:02:03]}  Rfd8 {[%clk 0:02:21]} 14. a3 {[%clk 0:02:00]}  Bxc3 {[%clk 0:02:10]} 15. Bxc3 {[%clk 0:02:01]}  Qb5 {[%clk 0:02:03]} 16. Rfd1 {[%clk 0:02:00]}  Nd5 {[%clk 0:01:58]} 17. b3 {[%clk 0:01:16]}  Qxd3 {[%clk 0:01:51]} 18. Rxd3 {[%clk 0:01:17]}  Nxc3 {[%clk 0:01:51]} 19. Rxc3 {[%clk 0:01:18]}  Rxd4 {[%clk 0:01:51]} 20. Rxc6 {[%clk 0:01:18]}  Rd7 {[%clk 0:01:45]} 21. Re1 {[%clk 0:01:11]}  Kf8 {[%clk 0:01:43]} 22. Re5 {[%clk 0:01:05]}  a5 {[%clk 0:01:36]} 23. a4 {[%clk 0:00:55]}  Ra7 {[%clk 0:01:20]} 24. Rb5 {[%clk 0:00:38]}  Ke7 {[%clk 0:01:10]} 25. Rcc5 {[%clk 0:00:34]}  Rd1+ {[%clk 0:01:04]} 26. Kh2 {[%clk 0:00:34]}  Rd2 {[%clk 0:01:04]} 27. Kg3 {[%clk 0:00:34]}  Kd6 {[%clk 0:01:04]} 28. Kf3 {[%clk 0:00:17]}  c6 {[%clk 0:00:42]} 29. Rxa5 {[%clk 0:00:18]}  Rxa5 {[%clk 0:00:43]} 30. Rxa5 {[%clk 0:00:18]}  Rxc2 {[%clk 0:00:43]} 31. Ra7 {[%clk 0:00:17]}  f5 {[%clk 0:00:31]} 32. Rxg7 {[%clk 0:00:16]}  Rc3+ {[%clk 0:00:30]} 33. Kf4 {[%clk 0:00:15]}  Rxb3 {[%clk 0:00:30]} 34. Rxh7 {[%clk 0:00:16]}  Rb4+ {[%clk 0:00:26]} 35. Kg5 {[%clk 0:00:16]}  Rxa4 {[%clk 0:00:26]} 36. g4 {[%clk 0:00:16]}  fxg4 {[%clk 0:00:25]} 37. hxg4 {[%clk 0:00:17]}  c5 {[%clk 0:00:25]} 38. Rh8 {[%clk 0:00:14]}  c4 {[%clk 0:00:25]} 39. Rd8+ {[%clk 0:00:14]}  Ke5 {[%clk 0:00:20]} 40. f4+ {[%clk 0:00:14]}  Ke4 {[%clk 0:00:21]} 41. Re8 {[%clk 0:00:11]}  Kd5 {[%clk 0:00:19]} 42. Rd8+ {[%clk 0:00:07]}  Ke4 {[%clk 0:00:17]} 43. Re8 {[%clk 0:00:08]}  Kd5 {[%clk 0:00:17]} 44. Kf6 {[%clk 0:00:07]}  c3 {[%clk 0:00:11]} 45. Rd8+ {[%clk 0:00:07]}  Ke4 {[%clk 0:00:11]} 46. g5 {[%clk 0:00:07]}  Rc4 {[%clk 0:00:05]} 47. Rd1 {[%clk 0:00:06]}  Kxf4 {[%clk 0:00:03]} 48. g6 {[%clk 0:00:06]}  Ke3 {[%clk 0:00:03]} 49. g7 {[%clk 0:00:07]}  Rc8 {[%clk 0:00:03]} 50. Rg1 {[%clk 0:00:04]}  c2 {[%clk 0:00:03]} 51. Kxe6 {[%clk 0:00:03]}  Kd2 {[%clk 0:00:02]} 52. Rg2+ {[%clk 0:00:03]}  Kd1 {[%clk 0:00:02]} 53. Rxc2 {[%clk 0:00:02]}  Kxc2 {[%clk 0:00:02]} 54. Kf7 {[%clk 0:00:03]}  Rc7+ {[%clk 0:00:03]} 55. Kf8 {[%clk 0:00:03]}  Rxg7 {[%clk 0:00:04]} 56. Kxg7 {[%clk 0:00:03]} 1/2-1/2


[Site "https://www.chess.com"]

[Event "Titled Tuesday Blitz July 25 Early 2023"]
[White "Tomaszewski, Kacper"]
[Black "Williams, Simon K"]
[WhiteFideId "1127373"]
[BlackFideId "404454"]
[WhiteElo "2490"]
[BlackElo "2724"]
[Result "0-1"]
[Round "9"]
[TimeControl "180+2"]
[Date "2023.07.25"]
[WhiteClock "0:00:01"]
[BlackClock "0:00:05"]
[Board "52"]

1. d4 {[%clk 0:03:00]}  e6 {[%clk 0:02:59]} 2. c4 {[%clk 0:03:00]}  f5 {[%clk 0:02:59]} 3. Nc3 {[%clk 0:02:56]}  Nf6 {[%clk 0:02:59]} 4. Bf4 {[%clk 0:02:56]}  Bb4 {[%clk 0:02:58]} 5. e3 {[%clk 0:02:55]}  b6 {[%clk 0:02:58]} 6. Bd3 {[%clk 0:02:51]}  Bb7 {[%clk 0:02:51]} 7. Nf3 {[%clk 0:02:51]}  Ne4 {[%clk 0:02:51]} 8. Qc2 {[%clk 0:02:51]}  O-O {[%clk 0:02:50]} 9. Rg1 {[%clk 0:02:51]}  d6 {[%clk 0:02:40]} 10. g4 {[%clk 0:02:47]}  Nd7 {[%clk 0:02:33]} 11. gxf5 {[%clk 0:02:36]}  exf5 {[%clk 0:02:31]} 12. Ng5 {[%clk 0:02:29]}  Qe7 {[%clk 0:02:23]} 13. O-O-O {[%clk 0:02:15]}  Bxc3 {[%clk 0:02:22]} 14. bxc3 {[%clk 0:02:15]}  d5 {[%clk 0:02:09]} 15. f3 {[%clk 0:02:07]}  Qa3+ {[%clk 0:01:52]} 16. Qb2 {[%clk 0:02:02]}  Qxc3+ {[%clk 0:01:51]} 17. Qxc3 {[%clk 0:02:00]}  Nxc3 {[%clk 0:01:51]} 18. Ne6 {[%clk 0:01:52]}  Rf7 {[%clk 0:01:51]} 19. Rd2 {[%clk 0:01:36]}  dxc4 {[%clk 0:01:47]} 20. Bxc4 {[%clk 0:01:32]}  Bd5 {[%clk 0:01:47]} 21. Bxd5 {[%clk 0:01:17]}  Nxd5 {[%clk 0:01:47]} 22. Bh6 {[%clk 0:01:13]}  g6 {[%clk 0:01:44]} 23. e4 {[%clk 0:01:10]}  fxe4 {[%clk 0:01:42]} 24. fxe4 {[%clk 0:01:11]}  N5f6 {[%clk 0:01:36]} 25. e5 {[%clk 0:01:01]}  Ne4 {[%clk 0:01:34]} 26. Rc2 {[%clk 0:00:57]}  c5 {[%clk 0:01:32]} 27. Re1 {[%clk 0:00:51]}  Nf2 {[%clk 0:01:32]} 28. Kb1 {[%clk 0:00:35]}  Nd3 {[%clk 0:01:25]} 29. Rd1 {[%clk 0:00:33]}  Nf2 {[%clk 0:01:13]} 30. Re1 {[%clk 0:00:32]}  Ng4 {[%clk 0:01:11]} 31. Bg5 {[%clk 0:00:28]}  cxd4 {[%clk 0:01:11]} 32. Nc7 {[%clk 0:00:27]}  d3 {[%clk 0:00:40]} 33. Rc3 {[%clk 0:00:27]}  Ndxe5 {[%clk 0:00:30]} 34. Nxa8 {[%clk 0:00:26]}  Nf3 {[%clk 0:00:23]} 35. Re8+ {[%clk 0:00:24]}  Kg7 {[%clk 0:00:23]} 36. Rcc8 {[%clk 0:00:24]}  Nxg5 {[%clk 0:00:22]} 37. Red8 {[%clk 0:00:20]}  Ne5 {[%clk 0:00:19]} 38. Rc7 {[%clk 0:00:14]}  Ne4 {[%clk 0:00:15]} 39. Rxf7+ {[%clk 0:00:12]}  Kxf7 {[%clk 0:00:16]} 40. Kc1 {[%clk 0:00:09]}  d2+ {[%clk 0:00:08]} 41. Kc2 {[%clk 0:00:09]}  Nc4 {[%clk 0:00:06]} 42. Nc7 {[%clk 0:00:07]}  Ne3+ {[%clk 0:00:06]} 43. Kb3 {[%clk 0:00:04]}  d1=Q+ {[%clk 0:00:06]} 44. Rxd1 {[%clk 0:00:04]}  Nxd1 {[%clk 0:00:07]} 45. Nb5 {[%clk 0:00:04]}  a6 {[%clk 0:00:07]} 46. Nc7 {[%clk 0:00:03]}  a5 {[%clk 0:00:07]} 47. Nd5 {[%clk 0:00:04]}  Ndf2 {[%clk 0:00:07]} 48. Nxb6 {[%clk 0:00:03]}  Ke6 {[%clk 0:00:07]} 49. Nc4 {[%clk 0:00:04]}  Kd5 {[%clk 0:00:07]} 50. Nxa5 {[%clk 0:00:04]}  Kc5 {[%clk 0:00:07]} 51. Nc4 {[%clk 0:00:04]}  Ng4 {[%clk 0:00:06]} 52. Nb2 {[%clk 0:00:03]}  Nxh2 {[%clk 0:00:05]} 53. Nd3+ {[%clk 0:00:03]}  Kb6 {[%clk 0:00:06]} 54. Ne5 {[%clk 0:00:03]}  Nf1 {[%clk 0:00:05]} 55. a4 {[%clk 0:00:02]}  g5 {[%clk 0:00:06]} 56. Nf7 {[%clk 0:00:01]}  g4 {[%clk 0:00:05]} 57. Nd6 {[%clk 0:00:01]}  Nxd6 {[%clk 0:00:05]} 0-1


[Site "https://www.chess.com"]

[Event "Titled Tuesday Blitz July 25 Early 2023"]
[White "Amilal Munkhdalai"]
[Black "whiteglovethief"]
[WhiteFideId "4903250"]
[WhiteElo "2723"]
[BlackElo "2483"]
[Result "1-0"]
[Round "9"]
[TimeControl "180+2"]
[Date "2023.07.25"]
[WhiteClock "0:00:18"]
[BlackClock "0:00:00"]
[Board "53"]

1. e4 {[%clk 0:02:59]}  d5 {[%clk 0:02:26]} 2. exd5 {[%clk 0:02:56]}  Qxd5 {[%clk 0:02:27]} 3. Nc3 {[%clk 0:02:54]}  Qa5 {[%clk 0:02:27]} 4. d4 {[%clk 0:02:54]}  Nf6 {[%clk 0:02:28]} 5. g3 {[%clk 0:02:52]}  c6 {[%clk 0:02:27]} 6. Bg2 {[%clk 0:02:52]}  h5 {[%clk 0:02:26]} 7. h3 {[%clk 0:02:51]}  Bf5 {[%clk 0:02:26]} 8. Be3 {[%clk 0:02:49]}  e6 {[%clk 0:02:26]} 9. Ne2 {[%clk 0:02:48]}  Na6 {[%clk 0:02:22]} 10. a3 {[%clk 0:02:46]}  Rd8 {[%clk 0:02:22]} 11. Qc1 {[%clk 0:02:40]}  Qc7 {[%clk 0:02:12]} 12. b4 {[%clk 0:02:37]}  Bd6 {[%clk 0:02:03]} 13. Rb1 {[%clk 0:02:24]}  b5 {[%clk 0:01:48]} 14. Bf4 {[%clk 0:02:18]}  Nd5 {[%clk 0:01:39]} 15. Bxd6 {[%clk 0:02:09]}  Qxd6 {[%clk 0:01:37]} 16. Nxd5 {[%clk 0:01:45]}  cxd5 {[%clk 0:01:32]} 17. O-O {[%clk 0:01:43]}  Rc8 {[%clk 0:01:22]} 18. Rb2 {[%clk 0:01:41]}  Nb8 {[%clk 0:01:21]} 19. Qg5 {[%clk 0:01:38]}  Bg6 {[%clk 0:01:20]} 20. Nf4 {[%clk 0:01:33]}  Rh6 {[%clk 0:01:15]} 21. Re1 {[%clk 0:01:26]}  Kf8 {[%clk 0:00:50]} 22. Rb3 {[%clk 0:01:19]}  Bxc2 {[%clk 0:00:45]} 23. Rbe3 {[%clk 0:01:14]}  Kg8 {[%clk 0:00:41]} 24. Nxh5 {[%clk 0:00:56]}  Rg6 {[%clk 0:00:41]} 25. Qf4 {[%clk 0:00:52]}  Qxf4 {[%clk 0:00:36]} 26. Nxf4 {[%clk 0:00:52]}  Rf6 {[%clk 0:00:37]} 27. Nxd5 {[%clk 0:00:47]}  exd5 {[%clk 0:00:25]} 28. Re8+ {[%clk 0:00:47]}  Rxe8 {[%clk 0:00:25]} 29. Rxe8+ {[%clk 0:00:47]}  Kh7 {[%clk 0:00:26]} 30. Rxb8 {[%clk 0:00:47]}  a6 {[%clk 0:00:10]} 31. Bxd5 {[%clk 0:00:41]}  Rd6 {[%clk 0:00:08]} 32. Bxf7 {[%clk 0:00:40]}  Rxd4 {[%clk 0:00:08]} 33. Bh5 {[%clk 0:00:29]}  Be4 {[%clk 0:00:08]} 34. Re8 {[%clk 0:00:24]}  Rc4 {[%clk 0:00:06]} 35. f3 {[%clk 0:00:21]}  Bd5 {[%clk 0:00:04]} 36. Re5 {[%clk 0:00:20]}  Rd4 {[%clk 0:00:01]} 37. Kf2 {[%clk 0:00:18]}  Rd2+ {[%clk 0:00:02]} 38. Ke3 {[%clk 0:00:18]}  Rd4 {[%clk 0:00:00]} 39. Kxd4 {[%clk 0:00:18]} 1-0


[Site "https://www.chess.com"]